[Event "Int SVK-ch Open 2020"]
[Site "Drienica"]
[Date "2020.08.13"]
[Round "5.4"]
[White "Mrvova Alena"]
[Black "Majek, Kacper"]
[Result "0-1"]
[ECO "C77"]
[WhiteElo "2188"]
[BlackElo "1970"]
[Annotator "ChessBase"]
[PlyCount "114"]
[EventDate "2020.08.07"]
[EventType "swiss"]
[EventCountry "SVK"]
[TimeControl "40/5400+30:1800+30"]

1. e4 {[%emt 0:00:39]} e5 {[%emt 0:00:00]} 2. Nf3 {[%emt 0:00:32]} Nc6 {[%emt 0:00:00]} 3. Bb5 {[%emt 0:00:08]} a6 {[%emt 0:00:00]} 4. Ba4 {[%emt 0:00:15]} Nf6 {[%emt 0:00:00]} 5. Qe2 {[%emt 0:01:34]} Bc5 {[%emt 0:03:33]} 6. c3 {[%emt 0:01:55]} b5 {[%emt 0:14:29]} 7. Bc2 {[%emt 0:01:18]} O-O {[%emt 0:00:27]} 8. O-O {[%emt 0:02:58]} d5 {[%emt 0:04:31]} 9. d4 {[%emt 0:05:48]} exd4 {[%emt 0:06:44]} 10. Bg5 {[%emt 0:00:40]} dxe4 {[%emt 0:06:12]} 11. Bxe4 {[%emt 0:00:33]} Qd6 {[%emt 0:03:27]} 12. cxd4 {[%emt 0:02:55]} Nxe4 {[%emt 0:08:19]} 13. Qxe4 {[%emt 0:03:44]} f5 {[%emt 0:01:25]} 14. dxc5 {[%emt 0:03:53]} fxe4 {[%emt 0:00:06]} 15. cxd6 {[%emt 0:00:04]} exf3 {[%emt 0:00:09]} 16. dxc7 {[%emt 0:01:48]} Ra7 {[%emt 0:01:16]} 17. Nd2 {[%emt 0:10:08]} fxg2 {[%emt 0:02:32]} 18. Kxg2 {[%emt 0:03:50]} Rxc7 {[%emt 0:00:24]} 19. Rac1 {[%emt 0:02:19]} Bb7 {[%emt 0:08:24]} 20. Ne4 {[%emt 0:02:52]} Nd4 {[%emt 0:00:38]} 21. Rxc7 {[%emt 0:00:07]} Bxe4+ {[%emt 0:00:05]} 22. f3 {[%emt 0:00:23]} Nxf3 {[%emt 0:12:00]} 23. Kg3 {[%emt 0:00:19]} Nxg5 {[%emt 0:01:03]} 24. Rxf8+ {[%emt 0:00:13]} Kxf8 {[%emt 0:00:01]} 25. Rc8+ {[%emt 0:00:07]} Kf7 {[%emt 0:02:01]} 26. Kf4 {[%emt 0:00:11]} Kg6 {[%emt 0:00:35]} 27. h4 {[%emt 0:05:59]} Bf5 {[%emt 0:00:20]} 28. Rc6+ {[%emt 0:02:01]} Ne6+ {[%emt 0:00:07]} 29. Ke5 {[%emt 0:00:04]} Kh5 {[%emt 0:08:53]} 30. Rxa6 {[%emt 0:00:26]} Bh3 {[%emt 0:06:14]} 31. Rb6 {[%emt 0:01:11]} Kxh4 {[%emt 0:00:08]} 32. Rxb5 {[%emt 0:00:07]} g5 {[%emt 0:00:26]} 33. Rb6 {[%emt 0:07:46]} Nf8 {[%emt 0:03:33]} 34. Ke4 {[%emt 0:02:25]} g4 {[%emt 0:02:07]} 35. Ke3 {[%emt 0:00:10]} Kg3 {[%emt 0:01:52]} 36. Rf6 {[%emt 0:03:20]} Ng6 {[%emt 0:02:33]} 37. a4 {[%emt 0:01:55]} Kh2 {[%emt 0:00:42]} 38. Rf2+ {[%emt 0:00:07]} Kh1 {[%emt 0:00:54]} 39. Rc2 {[%emt 0:02:12]} g3 {[%emt 0:00:15]} 40. Rc1+ {[%emt 0:00:05]} Kh2 {[%emt 0:00:25]} 41. a5 {[%emt 0:30:10]} g2 {[%emt 0:30:32]} 42. b4 {[%emt 0:06:19]} g1=Q+ {[%emt 0:00:48]} 43. Rxg1 {[%emt 0:00:04]} Kxg1 {[%emt 0:00:06]} 44. b5 {[%emt 0:00:04]} Bf1 {[%emt 0:01:26]} 45. b6 {[%emt 0:01:05]} Ba6 {[%emt 0:00:10]} 46. Kd4 {[%emt 0:00:16]} h5 {[%emt 0:00:15]} 47. Kc5 {[%emt 0:00:15]} h4 {[%emt 0:00:19]} 48. Kc6 {[%emt 0:00:10]} h3 {[%emt 0:00:22]} 49. b7 {[%emt 0:00:33]} Bxb7+ {[%emt 0:00:04]} 50. Kxb7 {[%emt 0:00:05]} h2 {[%emt 0:00:04]} 51. a6 {[%emt 0:00:18]} h1=Q+ {[%emt 0:00:04]} 52. Kb8 {[%emt 0:00:07]} Qh8+ {[%emt 0:00:16]} 53. Kb7 {[%emt 0:00:11]} Qg7+ {[%emt 0:00:05]} 54. Kb8 {[%emt 0:00:09]} Qf8+ {[%emt 0:00:06]} 55. Kb7 {[%emt 0:00:07]} Qe7+ {[%emt 0:00:10]} 56. Kb8 {[%emt 0:00:06]} Qd8+ {[%emt 0:02:18]} 57. Kb7 {[%emt 0:00:06]} Ne7 {[%emt 0:00:08]} 0-1

[Event "Int SVK-ch Open 2020"]
[Site "Drienica"]
[Date "2020.08.11"]
[Round "5.4"]
[White "Skovran, Jaroslav"]
[Black "Budjac, Martin"]
[Result "1-0"]
[ECO "C44"]
[WhiteElo "1975"]
[BlackElo "1657"]
[Annotator "ChessBase"]
[PlyCount "115"]
[EventDate "2020.08.07"]
[EventType "swiss"]
[EventCountry "SVK"]
[SourceTitle "playchess.com"]
[Source "ChessBase"]
[SourceQuality "1"]
[TimeControl "40/5400+30:1800+30"]

1. e4 {[%emt 0:00:00]} e5 {[%emt 0:00:00]} 2. Nf3 {[%emt 0:00:00]} Nc6 {[%emt 0:00:00]} 3. d4 {[%emt 0:00:00]} exd4 {[%emt 0:00:00]} 4. Nxd4 {[%emt 0:00:00]} Bb4+ {[%emt 0:00:01]} 5. c3 {[%emt 0:00:12]} Bc5 {[%emt 0:00:03]} 6. Bc4 {[%emt 0:00:46]} Nge7 7. Bxf7+ {[%emt 0:01:25]} Kxf7 {[%emt 0:03:00]} 8. Qh5+ {[%emt 0:00:17]} Kf8 {[%emt 0:00:49]} 9. Qxc5 {[%emt 0:00:11]} d6 {[%emt 0:00:53]} 10. Qh5 {[%emt 0:00:13]} Qe8 {[%emt 0:01:53]} 11. Qe2 {[%emt 0:00:22]} Qg6 {[%emt 0:02:03]} 12. O-O {[%emt 0:00:24]} Nxd4 {[%emt 0:08:15]} 13. cxd4 {[%emt 0:00:21]} Nc6 {[%emt 0:00:11]} 14. Rd1 {[%emt 0:03:15]} h5 {[%emt 0:03:36]} 15. Nc3 {[%emt 0:01:03]} h4 {[%emt 0:04:52]} 16. Be3 {[%emt 0:04:39]} Bd7 {[%emt 0:04:38]} 17. Rd2 {[%emt 0:01:25]} h3 {[%emt 0:03:04]} 18. g3 {[%emt 0:00:17]} Kg8 {[%emt 0:01:51]} 19. f3 {[%emt 0:01:44]} Rf8 {[%emt 0:01:54]} 20. Rf1 {[%emt 0:00:49]} Rh5 {[%emt 0:03:08]} 21. Nd5 {[%emt 0:03:31]} Rxd5 {[%emt 0:01:30]} 22. exd5 {[%emt 0:00:18]} Ne7 {[%emt 0:00:08]} 23. Qc4 {[%emt 0:01:11]} Nf5 {[%emt 0:01:53]} 24. Qd3 {[%emt 0:11:55]} Bb5 {[%emt 0:04:36]} 25. Qxb5 {[%emt 0:02:19]} Nxe3 {[%emt 0:03:30]} 26. Qd3 {[%emt 0:10:35]} Qxd3 {[%emt 0:03:31]} 27. Rxd3 {[%emt 0:03:51]} Nxf1 {[%emt 0:00:05]} 28. Kxf1 {[%emt 0:00:28]} Kf7 {[%emt 0:05:18]} 29. Re3 {[%emt 0:01:08]} Kg6 {[%emt 0:02:34]} 30. g4 {[%emt 0:00:42]} Kg5 {[%emt 0:01:19]} 31. Kf2 {[%emt 0:01:18]} Rf4 {[%emt 0:01:17]} 32. Re7 {[%emt 0:00:22]} Rxd4 {[%emt 0:00:28]} 33. Rxg7+ {[%emt 0:01:15]} Kf4 {[%emt 0:00:14]} 34. Rf7+ {[%emt 0:00:19]} Kg5 {[%emt 0:03:32]} 35. Rxc7 {[%emt 0:01:40]} Rd2+ {[%emt 0:00:34]} 36. Kg3 {[%emt 0:00:11]} Rxb2 {[%emt 0:00:12]} 37. f4+ {[%emt 0:00:49]} Kf6 {[%emt 0:00:25]} 38. Rd7 {[%emt 0:01:39]} Rxa2 {[%emt 0:00:41]} 39. Rxd6+ {[%emt 0:00:19]} Ke7 {[%emt 0:00:09]} 40. Re6+ {[%emt 0:00:24]} Kf7 {[%emt 0:00:09]} 41. Kxh3 {[%emt 0:32:15]} b5 {[%emt 0:30:28]} 42. Rc6 {[%emt 0:00:48]} b4 {[%emt 0:02:44]} 43. Kh4 {[%emt 0:06:53]} b3 {[%emt 0:03:53]} 44. Kg5 {[%emt 0:01:48]} b2 {[%emt 0:03:46]} 45. Rc7+ {[%emt 0:00:09]} Kf8 {[%emt 0:04:35]} 46. Rb7 {[%emt 0:00:51]} Ra5 {[%emt 0:03:07]} 47. Rxb2 {[%emt 0:00:23]} Rxd5+ {[%emt 0:00:07]} 48. f5 {[%emt 0:00:15]} a5 {[%emt 0:00:44]} 49. Rb8+ {[%emt 0:00:25]} Kf7 {[%emt 0:00:16]} 50. Rb7+ {[%emt 0:00:16]} Kf8 {[%emt 0:00:18]} 51. Ra7 {[%emt 0:00:08]} Rd2 {[%emt 0:00:32]} 52. Rxa5 {[%emt 0:00:30]} Rxh2 {[%emt 0:00:16]} 53. Kg6 {[%emt 0:00:11]} Rg2 {[%emt 0:01:05]} 54. Kf6 {[%emt 0:00:14]} Kg8 {[%emt 0:00:14]} 55. g5 {[%emt 0:00:14]} Rb2 {[%emt 0:02:07]} 56. Ra8+ {[%emt 0:00:09]} Kh7 {[%emt 0:00:08]} 57. g6+ {[%emt 0:00:02]} Kh6 {[%emt 0:00:11]} 58. Rh8# {[%emt 0:00:12]} 1-0

[Event "Int SVK-ch Open 2020"]
[Site "Drienica"]
[Date "2020.08.11"]
[Round "5.5"]
[White "Panko, Eduard st."]
[Black "Furman, Maximilian Jan"]
[Result "1-0"]
[ECO "B30"]
[WhiteElo "1958"]
[BlackElo "1610"]
[Annotator "ChessBase"]
[PlyCount "57"]
[EventDate "2020.08.07"]
[EventType "swiss"]
[EventCountry "SVK"]
[SourceTitle "playchess.com"]
[Source "ChessBase"]
[SourceQuality "1"]
[TimeControl "40/5400+30:1800+30"]

1. d3 {[%emt 0:01:33]} c5 {[%emt 0:00:07]} 2. Nf3 {[%emt 0:00:33]} g6 {[%emt 0:01:08]} 3. e4 {[%emt 0:01:56]} Bg7 {[%emt 0:00:31]} 4. c3 {[%emt 0:00:09]} Nc6 {[%emt 0:01:04]} 5. Be2 {[%emt 0:02:08]} d6 {[%emt 0:02:05]} 6. Nbd2 {[%emt 0:01:13]} Nf6 {[%emt 0:00:19]} 7. h3 {[%emt 0:00:25]} Bd7 {[%emt 0:00:42]} 8. Nc4 {[%emt 0:00:11]} O-O {[%emt 0:06:12]} 9. Ne3 {[%emt 0:01:35]} h6 {[%emt 0:05:54]} 10. g4 {[%emt 0:05:44]} b5 {[%emt 0:10:08]} 11. Qc2 {[%emt 0:04:23]} Qc8 {[%emt 0:09:47]} 12. Bd2 {[%emt 0:01:45]} Rb8 {[%emt 0:01:16]} 13. g5 {[%emt 0:11:25]} hxg5 {[%emt 0:07:50]} 14. Nxg5 {[%emt 0:00:37]} e5 {[%emt 0:05:19]} 15. h4 {[%emt 0:02:43]} Ne7 {[%emt 0:08:05]} 16. h5 {[%emt 0:04:05]} gxh5 {[%emt 0:00:38]} 17. Bxh5 {[%emt 0:00:22]} Nxh5 {[%emt 0:01:55]} 18. Rxh5 {[%emt 0:01:40]} Bg4 {[%emt 0:02:14]} 19. Rh4 {[%emt 0:02:39]} Be6 {[%emt 0:02:06]} 20. O-O-O {[%emt 0:01:39]} b4 {[%emt 0:02:29]} 21. c4 {[%emt 0:02:36]} b3 {[%emt 0:01:28]} 22. axb3 {[%emt 0:01:10]} Qb7 {[%emt 0:01:07]} 23. Rg1 {[%emt 0:01:03]} Bd7 {[%emt 0:03:04]} 24. Nh7 {[%emt 0:04:20]} Ng6 {[%emt 0:00:53]} 25. Rh2 {[%emt 0:01:09]} Rfe8 {[%emt 0:01:15]} 26. Nd5 {[%emt 0:00:29]} Re6 {[%emt 0:01:10]} 27. Bg5 {[%emt 0:02:58]} a5 {[%emt 0:04:41]} 28. Nhf6+ {[%emt 0:00:45]} Kf8 {[%emt 0:03:56]} 29. Bh6 {[%emt 0:01:09]} 1-0

[Event "Int SVK-ch Open 2020"]
[Site "Drienica"]
[Date "2020.08.13"]
[Round "5.6"]
[White "Juhar Roman"]
[Black "Konyves, Almos"]
[Result "1-0"]
[ECO "A02"]
[WhiteElo "2225"]
[BlackElo "2076"]
[Annotator "ChessBase"]
[PlyCount "69"]
[EventDate "2020.08.07"]
[EventType "swiss"]
[EventCountry "SVK"]
[TimeControl "40/5400+30:1800+30"]

1. f4 {[%emt 0:00:00]} Nf6 {[%emt 0:01:31]} 2. b3 {[%emt 0:00:00]} c5 {[%emt 0:02:03]} 3. Bb2 {[%emt 0:00:06]} e6 {[%emt 0:02:12]} 4. Nf3 {[%emt 0:00:11]} Nc6 {[%emt 0:01:37]} 5. e3 {[%emt 0:02:56]} b6 {[%emt 0:00:43]} 6. Bb5 {[%emt 0:01:57]} Bb7 {[%emt 0:00:14]} 7. O-O {[%emt 0:00:12]} d6 {[%emt 0:01:51]} 8. d3 {[%emt 0:00:34]} a6 {[%emt 0:00:00]} 9. Bxc6+ {[%emt 0:00:06]} Bxc6 {[%emt 0:00:02]} 10. Nbd2 {[%emt 0:00:31]} Qc7 {[%emt 0:06:51]} 11. e4 {[%emt 0:02:19]} d5 {[%emt 0:01:59]} 12. Qe2 {[%emt 0:04:08]} d4 {[%emt 0:05:07]} 13. Nc4 {[%emt 0:01:32]} Nd7 {[%emt 0:06:03]} 14. Nce5 {[%emt 0:00:47]} Nxe5 {[%emt 0:01:45]} 15. Nxe5 {[%emt 0:00:15]} Bb7 {[%emt 0:00:30]} 16. Qg4 {[%emt 0:02:12]} Bc8 {[%emt 0:01:18]} 17. c3 {[%emt 0:01:30]} f6 {[%emt 0:34:59]} 18. Qh5+ {[%emt 0:02:05]} g6 {[%emt 0:00:13]} 19. Nxg6 {[%emt 0:00:18]} Qf7 {[%emt 0:00:07]} 20. f5 {[%emt 0:00:09]} e5 {[%emt 0:01:06]} 21. Qh4 {[%emt 0:02:55]} Rg8 {[%emt 0:01:27]} 22. Nxf8 {[%emt 0:00:08]} Kxf8 {[%emt 0:01:37]} 23. cxd4 {[%emt 0:00:09]} exd4 {[%emt 0:00:30]} 24. b4 {[%emt 0:00:34]} Qg7 {[%emt 0:07:02]} 25. Rf2 {[%emt 0:00:12]} Bd7 {[%emt 0:02:38]} 26. bxc5 {[%emt 0:01:09]} bxc5 {[%emt 0:00:07]} 27. Rc1 {[%emt 0:00:58]} Rc8 {[%emt 0:01:33]} 28. Rxc5 {[%emt 0:04:16]} Rxc5 {[%emt 0:01:09]} 29. Ba3 {[%emt 0:00:08]} Bb5 {[%emt 0:05:51]} 30. Bxc5+ {[%emt 0:00:14]} Ke8 {[%emt 0:02:15]} 31. Bxd4 {[%emt 0:00:23]} Bxd3 {[%emt 0:01:00]} 32. Qf4 {[%emt 0:04:39]} Qb7 {[%emt 0:02:29]} 33. Rb2 {[%emt 0:00:32]} Qc6 {[%emt 0:03:00]} 34. Qb8+ {[%emt 0:00:20]} Kd7 {[%emt 0:00:13]} 35. Rb7+ {[%emt 0:00:06]} 1-0

[Event "Int SVK-ch Open 2020"]
[Site "Drienica"]
[Date "2020.08.11"]
[Round "5.7"]
[White "Harvan, Tomas"]
[Black "Belis, Rudolf"]
[Result "0-1"]
[ECO "B00"]
[WhiteElo "1788"]
[BlackElo "1924"]
[Annotator "ChessBase"]
[PlyCount "104"]
[EventDate "2020.08.07"]
[EventType "swiss"]
[EventCountry "SVK"]
[SourceTitle "playchess.com"]
[Source "ChessBase"]
[SourceQuality "1"]
[TimeControl "40/5400+30:1800+30"]

1. e4 {[%emt 0:00:00]} d6 {[%emt 0:00:06]} 2. Nf3 {[%emt 0:02:17]} Nf6 {[%emt 0:00:11]} 3. Nc3 {[%emt 0:00:07]} Nbd7 {[%emt 0:00:08]} 4. d4 {[%emt 0:00:10]} e5 {[%emt 0:00:08]} 5. Bc4 {[%emt 0:01:57]} Be7 {[%emt 0:00:22]} 6. O-O {[%emt 0:00:46]} c6 {[%emt 0:00:10]} 7. Bb3 {[%emt 0:00:50]} h6 {[%emt 0:00:27]} 8. h3 {[%emt 0:06:17]} Qc7 {[%emt 0:00:13]} 9. Be3 {[%emt 0:03:44]} g5 {[%emt 0:00:34]} 10. Nh2 {[%emt 0:12:48]} Nf8 {[%emt 0:01:02]} 11. Qf3 {[%emt 0:07:59]} Ng6 {[%emt 0:01:01]} 12. Rad1 {[%emt 0:06:34]} Nf4 {[%emt 0:00:46]} 13. Kh1 {[%emt 0:06:45]} h5 {[%emt 0:04:03]} 14. Bxf4 {[%emt 0:01:13]} gxf4 {[%emt 0:00:31]} 15. dxe5 {[%emt 0:01:02]} dxe5 {[%emt 0:00:08]} 16. Qe2 {[%emt 0:15:57]} Rh7 {[%emt 0:01:17]} 17. Nf3 {[%emt 0:00:42]} Nd7 {[%emt 0:09:48]} 18. a3 {[%emt 0:06:48]} Nc5 {[%emt 0:02:23]} 19. Ba2 {[%emt 0:00:04]} Ne6 {[%emt 0:02:15]} 20. Rd2 {[%emt 0:04:12]} Bd7 {[%emt 0:01:16]} 21. Rfd1 {[%emt 0:00:38]} O-O-O {[%emt 0:00:17]} 22. b4 {[%emt 0:01:37]} Bf6 {[%emt 0:00:47]} 23. Rd6 {[%emt 0:01:22]} Rh6 {[%emt 0:15:17]} 24. R6d2 {[%emt 0:05:32]} a6 {[%emt 0:00:19]} 25. Na4 {[%emt 0:02:43]} Rhh8 {[%emt 0:05:04]} 26. Bxe6 {[%emt 0:02:03]} Bxe6 {[%emt 0:00:31]} 27. Nc5 {[%emt 0:01:28]} Rxd2 {[%emt 0:00:40]} 28. Rxd2 {[%emt 0:00:04]} Rd8 {[%emt 0:01:51]} 29. Rxd8+ {[%emt 0:01:18]} Qxd8 {[%emt 0:01:36]} 30. Nxe6 {[%emt 0:01:41]} fxe6 {[%emt 0:00:02]} 31. Qd3 {[%emt 0:00:45]} Qxd3 {[%emt 0:00:38]} 32. cxd3 {[%emt 0:00:06]} Kc7 {[%emt 0:00:46]} 33. g4 {[%emt 0:04:19]} fxg3 {[%emt 0:02:49]} 34. fxg3 {[%emt 0:00:03]} Kb6 {[%emt 0:00:08]} 35. a4 {[%emt 0:01:09]} a5 {[%emt 0:00:08]} 36. g4 {[%emt 0:00:50]} hxg4 {[%emt 0:00:21]} 37. hxg4 {[%emt 0:00:04]} axb4 {[%emt 0:00:09]} 38. g5 {[%emt 0:01:23]} Be7 {[%emt 0:01:40]} 39. Nxe5 {[%emt 0:01:13]} Bxg5 {[%emt 0:00:24]} 40. Nd7+ {[%emt 0:00:16]} Ka5 {[%emt 0:01:56]} 41. Nc5 {[%emt 0:03:38]} Be7 {[%emt 0:00:09]} 42. Nxe6 {[%emt 0:00:41]} b3 {[%emt 0:00:14]} 43. Nd4 {[%emt 0:00:19]} Kb4 {[%emt 0:00:24]} 44. Nxb3 {[%emt 0:00:43]} Kxb3 {[%emt 0:00:01]} 45. d4 {[%emt 0:01:48]} Bd6 {[%emt 0:00:52]} 46. a5 {[%emt 0:01:02]} Kc4 {[%emt 0:00:11]} 47. d5 {[%emt 0:00:29]} c5 {[%emt 0:00:01]} 48. Kg2 {[%emt 0:00:26]} Kd3 {[%emt 0:00:06]} 49. Kf3 {[%emt 0:00:15]} c4 {[%emt 0:00:03]} 50. e5 {[%emt 0:01:15]} Bxe5 {[%emt 0:00:06]} 51. Kg4 {[%emt 0:00:05]} c3 {[%emt 0:00:06]} 52. Kf5 {[%emt 0:00:03]} Bc7 {[%emt 0:00:08]} 0-1

[Event "Int SVK-ch Open 2020"]
[Site "Drienica"]
[Date "2020.08.13"]
[Round "5.8"]
[White "Lehocz, Jozsef"]
[Black "Kravec Patrik"]
[Result "1-0"]
[ECO "B01"]
[WhiteElo "1959"]
[BlackElo "2119"]
[Annotator "ChessBase"]
[PlyCount "81"]
[EventDate "2020.08.07"]
[EventType "swiss"]
[EventCountry "SVK"]
[TimeControl "40/5400+30:1800+30"]

1. e4 {[%emt 0:00:00]} d5 {[%emt 0:09:29]} 2. exd5 {[%emt 0:00:07]} Qxd5 {[%emt 0:02:04]} 3. Nc3 {[%emt 0:04:16]} Qa5 {[%emt 0:00:44]} 4. g3 {[%emt 0:03:04]} Nf6 {[%emt 0:00:46]} 5. Bg2 {[%emt 0:00:11]} c6 {[%emt 0:03:48]} 6. Nf3 {[%emt 0:03:44]} Qh5 {[%emt 0:06:56]} 7. d4 {[%emt 0:01:45]} Bh3 {[%emt 0:01:05]} 8. Bxh3 {[%emt 0:07:54]} Qxh3 {[%emt 0:00:17]} 9. Qe2 {[%emt 0:00:56]} e6 {[%emt 0:03:56]} 10. Bg5 {[%emt 0:08:17]} Nbd7 {[%emt 0:02:22]} 11. O-O-O {[%emt 0:01:01]} Be7 {[%emt 0:01:36]} 12. Ne5 {[%emt 0:11:58]} Rd8 {[%emt 0:10:51]} 13. f4 {[%emt 0:03:21]} Nb6 {[%emt 0:04:29]} 14. Rd3 {[%emt 0:04:50]} h6 {[%emt 0:07:21]} 15. g4 {[%emt 0:02:40]} Qxd3 {[%emt 0:02:07]} 16. Qxd3 {[%emt 0:01:20]} hxg5 {[%emt 0:00:05]} 17. fxg5 {[%emt 0:00:18]} Nfd7 {[%emt 0:00:23]} 18. Qe4 {[%emt 0:14:56]} Bxg5+ {[%emt 0:00:20]} 19. Kb1 {[%emt 0:00:03]} Nf6 {[%emt 0:01:08]} 20. Qd3 {[%emt 0:04:29]} Bf4 {[%emt 0:01:15]} 21. Qe2 {[%emt 0:04:42]} Rxd4 {[%emt 0:01:59]} 22. Nf3 {[%emt 0:00:07]} Rd7 {[%emt 0:04:37]} 23. g5 {[%emt 0:02:45]} Nfd5 {[%emt 0:01:21]} 24. Ne4 {[%emt 0:02:00]} Re7 {[%emt 0:03:18]} 25. h4 {[%emt 0:01:00]} a5 {[%emt 0:05:10]} 26. h5 {[%emt 0:01:27]} a4 {[%emt 0:00:50]} 27. Qd3 {[%emt 0:03:27]} f5 {[%emt 0:06:27]} 28. c4 {[%emt 0:03:05]} fxe4 {[%emt 0:03:31]} 29. Qxe4 {[%emt 0:00:09]} Rf8 {[%emt 0:02:14]} 30. cxd5 {[%emt 0:01:41]} exd5 {[%emt 0:00:14]} 31. Qb4 {[%emt 0:01:02]} Be3 {[%emt 0:02:19]} 32. h6 {[%emt 0:01:49]} gxh6 {[%emt 0:04:17]} 33. gxh6 {[%emt 0:00:02]} Nc4 {[%emt 0:08:15]} 34. b3 {[%emt 0:03:34]} Rxf3 {[%emt 0:00:50]} 35. bxc4 {[%emt 0:00:01]} Bd4 {[%emt 0:00:32]} 36. cxd5 {[%emt 0:00:51]} c5 {[%emt 0:00:30]} 37. Qxa4+ {[%emt 0:00:26]} Kf7 {[%emt 0:00:00]} 38. h7 {[%emt 0:00:25]} Re2 {[%emt 0:00:00]} 39. Qxd4 {[%emt 0:00:19]} cxd4 {[%emt 0:00:24]} 40. h8=Q {[%emt 0:00:08]} d3 {[%emt 0:00:14]} 41. Qh5+ {[%emt 0:30:23]} 1-0

[Event "Int SVK-ch Open 2020"]
[Site "Drienica"]
[Date "2020.08.13"]
[Round "5.9"]
[White "Buran Jaroslav"]
[Black "Svobodova, Michaela"]
[Result "1/2-1/2"]
[ECO "D02"]
[WhiteElo "2098"]
[BlackElo "1997"]
[Annotator "ChessBase"]
[PlyCount "57"]
[EventDate "2020.08.07"]
[EventType "swiss"]
[EventCountry "SVK"]
[TimeControl "40/5400+30:1800+30"]

1. Nf3 {[%emt 0:00:31]} d5 {[%emt 0:00:10]} 2. d4 {[%emt 0:00:22]} Nf6 {[%emt 0:00:15]} 3. Bf4 {[%emt 0:02:02]} c5 {[%emt 0:01:27]} 4. dxc5 {[%emt 0:00:30]} Qa5+ {[%emt 0:04:12]} 5. Nc3 {[%emt 0:08:31]} Qxc5 {[%emt 0:09:26]} 6. e3 {[%emt 0:00:30]} Bg4 {[%emt 0:00:30]} 7. Bxb8 {[%emt 0:04:55]} Rxb8 {[%emt 0:17:45]} 8. Bb5+ {[%emt 0:05:29]} Kd8 {[%emt 0:02:26]} 9. h3 {[%emt 0:01:45]} Bxf3 {[%emt 0:03:49]} 10. Qxf3 {[%emt 0:02:18]} e6 {[%emt 0:02:33]} 11. e4 {[%emt 0:07:07]} dxe4 {[%emt 0:11:14]} 12. O-O-O+ {[%emt 0:01:11]} Bd6 {[%emt 0:08:47]} 13. Nxe4 {[%emt 0:08:12]} Nxe4 {[%emt 0:02:58]} 14. Qxe4 {[%emt 0:05:08]} Ke7 {[%emt 0:03:42]} 15. Ba4 {[%emt 0:12:27]} b5 {[%emt 0:05:27]} 16. Bb3 {[%emt 0:00:39]} Rhc8 {[%emt 0:01:36]} 17. Rhe1 {[%emt 0:02:57]} Kf8 {[%emt 0:03:19]} 18. Qxh7 {[%emt 0:05:46]} a5 {[%emt 0:03:56]} 19. Qh8+ {[%emt 0:02:33]} Ke7 {[%emt 0:00:06]} 20. Qxg7 {[%emt 0:00:27]} Bf4+ {[%emt 0:02:16]} 21. Kb1 {[%emt 0:00:12]} Rb6 {[%emt 0:01:00]} 22. Qd4 {[%emt 0:07:39]} a4 {[%emt 0:05:54]} 23. Qxf4 {[%emt 0:05:34]} axb3 {[%emt 0:00:05]} 24. Qh4+ {[%emt 0:01:37]} Ke8 {[%emt 0:01:42]} 25. Qh8+ {[%emt 0:04:53]} Ke7 {[%emt 0:00:14]} 26. Qh4+ {[%emt 0:00:23]} Ke8 {[%emt 0:00:30]} 27. Qh8+ {[%emt 0:02:03]} Ke7 {[%emt 0:00:16]} 28. Qh4+ {[%emt 0:00:14]} Ke8 {[%emt 0:01:46]} 29. Qh8+ {[%emt 0:02:15]} 1/2-1/2

[Event "Int SVK-ch Open 2020"]
[Site "Drienica"]
[Date "2020.08.11"]
[Round "5.9"]
[White "Bakalar, Jan"]
[Black "Strapec, Lukas"]
[Result "1/2-1/2"]
[ECO "B24"]
[WhiteElo "1900"]
[BlackElo "1517"]
[Annotator "ChessBase"]
[PlyCount "81"]
[EventDate "2020.08.07"]
[EventType "swiss"]
[EventCountry "SVK"]
[SourceTitle "playchess.com"]
[Source "ChessBase"]
[SourceQuality "1"]
[TimeControl "40/5400+30:1800+30"]

1. e4 {[%emt 0:00:44]} c5 {[%emt 0:00:18]} 2. Nc3 {[%emt 0:00:23]} Nc6 {[%emt 0:00:43]} 3. g3 {[%emt 0:00:07]} g6 {[%emt 0:01:20]} 4. Bg2 {[%emt 0:01:22]} Bg7 {[%emt 0:01:35]} 5. d3 {[%emt 0:00:06]} e6 {[%emt 0:01:47]} 6. Be3 {[%emt 0:00:09]} b6 {[%emt 0:02:51]} 7. Qd2 {[%emt 0:00:46]} Nge7 {[%emt 0:01:43]} 8. Bh6 {[%emt 0:00:14]} O-O {[%emt 0:02:40]} 9. h4 {[%emt 0:00:26]} f6 {[%emt 0:28:20]} 10. Bxg7 {[%emt 0:00:42]} Kxg7 {[%emt 0:00:30]} 11. h5 {[%emt 0:00:12]} g5 {[%emt 0:04:35]} 12. h6+ {[%emt 0:00:13]} Kh8 {[%emt 0:07:12]} 13. Nge2 {[%emt 0:07:21]} Bb7 {[%emt 0:10:08]} 14. O-O-O {[%emt 0:01:12]} d5 {[%emt 0:09:39]} 15. exd5 {[%emt 0:07:03]} exd5 {[%emt 0:02:05]} 16. Rdf1 {[%emt 0:03:09]} d4 {[%emt 0:08:28]} 17. Nd1 {[%emt 0:00:41]} Na5 {[%emt 0:03:34]} 18. Bxb7 {[%emt 0:03:32]} Nxb7 {[%emt 0:00:18]} 19. g4 {[%emt 0:02:57]} Qd5 {[%emt 0:01:55]} 20. Kb1 {[%emt 0:04:53]} Qf3 {[%emt 0:02:41]} 21. Rhg1 {[%emt 0:01:58]} Qh3 {[%emt 0:02:18]} 22. f4 {[%emt 0:01:19]} Qxh6 {[%emt 0:01:10]} 23. Rh1 {[%emt 0:00:14]} Qg6 {[%emt 0:01:53]} 24. f5 {[%emt 0:03:22]} Qf7 {[%emt 0:01:50]} 25. Ng3 {[%emt 0:00:10]} Nd6 {[%emt 0:01:10]} 26. Rh3 {[%emt 0:02:34]} Ng8 {[%emt 0:01:07]} 27. Rfh1 {[%emt 0:00:14]} h6 {[%emt 0:00:37]} 28. Nf2 {[%emt 0:00:35]} Qg7 {[%emt 0:00:55]} 29. Nfe4 {[%emt 0:01:07]} Nxe4 {[%emt 0:00:18]} 30. Nxe4 {[%emt 0:00:04]} Rad8 {[%emt 0:00:34]} 31. b3 {[%emt 0:03:33]} Rd7 {[%emt 0:00:26]} 32. Qh2 {[%emt 0:02:05]} Rff7 {[%emt 0:00:40]} 33. Rh5 {[%emt 0:04:04]} Rf8 {[%emt 0:00:24]} 34. Qg3 {[%emt 0:01:06]} Rfd8 {[%emt 0:00:26]} 35. R1h3 {[%emt 0:00:15]} Qf8 {[%emt 0:00:41]} 36. Qh2 {[%emt 0:01:06]} Rh7 {[%emt 0:00:21]} 37. Qd2 {[%emt 0:00:32]} Qg7 {[%emt 0:00:20]} 38. Rh1 {[%emt 0:02:11]} Qe7 {[%emt 0:00:35]} 39. Re1 {[%emt 0:00:23]} Qd7 {[%emt 0:00:36]} 40. Rhh1 {[%emt 0:00:27]} Re8 {[%emt 0:00:23]} 41. Rh5 {[%emt 0:31:16]} 1/2-1/2